fUST/lending_fUST_20250226
["ID","MTS","AMOUNT","RATE_DAILY","PERIOD"]
[354535698,1740558741784,-20000.0,0.00065753,120]
[354535699,1740558741795,-20000.0,0.00065753,120]
[354535700,1740558741804,-20000.0,0.00065753,120]
[354535701,1740558741813,-20000.0,0.00065753,120]
[354535702,1740558741960,-500.0,0.00065753,120]
[354535703,1740558741971,-500.0,0.00065753,120]
[354535704,1740558741980,-500.0,0.00065753,120]
[354535705,1740558741989,-397.00598801,0.00065753,120]
[354535706,1740558741999,-153.0,0.00065753,120]
[354535707,1740558742010,-206.0,0.00065753,120]
[354535708,1740558742019,-206.0,0.00065753,120]
[354535709,1740558742029,-206.0,0.00065753,120]
[354535710,1740558742038,-206.0,0.00065753,120]
[354535711,1740558742047,-206.0,0.00065753,120]
[354535712,1740558742057,-206.0,0.00065753,120]
[354535713,1740558742066,-206.0,0.00065753,120]
[354535714,1740558742076,-206.0,0.00065753,120]
[354535715,1740558742085,-206.0,0.00065753,120]
[354535716,1740558742094,-206.0,0.00065753,120]
[354535717,1740558742104,-206.0,0.00065753,120]
[354535718,1740558742113,-206.0,0.00065753,120]
[354535719,1740558742123,-206.0,0.00065753,120]
[354535720,1740558742132,-206.0,0.00065753,120]
[354535721,1740558742142,-206.0,0.00065753,120]
[354535722,1740558742152,-206.0,0.00065753,120]
[354535723,1740558742161,-206.0,0.00065753,120]
[354535724,1740558742171,-206.0,0.00065753,120]
[354535725,1740558742182,-206.0,0.00065753,120]
[354535726,1740558742191,-206.0,0.00065753,120]
[354535727,1740558742201,-206.0,0.00065753,120]
[354535728,1740558742210,-206.0,0.00065753,120]
[354535729,1740558742219,-206.0,0.00065753,120]
[354535730,1740558742228,-206.0,0.00065753,120]
[354535731,1740558742238,-206.0,0.00065753,120]
[354535732,1740558742248,-206.0,0.00065753,120]
[354535733,1740558742258,-206.0,0.00065753,120]
[354535734,1740558742268,-206.0,0.00065753,120]
[354535735,1740558742277,-206.0,0.00065753,120]
[354535736,1740558742288,-206.0,0.00065753,120]
[354535737,1740558742302,-206.0,0.00065753,120]
[354535738,1740558742312,-206.0,0.00065753,120]
[354535739,1740558742321,-206.0,0.00065753,120]
[354535740,1740558742330,-206.0,0.00065753,120]
[354535741,1740558742341,-206.0,0.00065753,120]
[354535742,1740558742350,-206.0,0.00065753,120]
[354535743,1740558742360,-206.0,0.00065753,120]
[354535744,1740558742370,-206.0,0.00065753,120]
[354535745,1740558742381,-206.0,0.00065753,120]
[354535746,1740558742392,-206.0,0.00065753,120]
[354535747,1740558742402,-206.0,0.00065753,120]
[354535748,1740558742412,-206.0,0.00065753,120]
[354535749,1740558742421,-206.0,0.00065753,120]
[354535750,1740558742431,-206.0,0.00065753,120]
[354535751,1740558742441,-206.0,0.00065753,120]
[354535752,1740558742450,-206.0,0.00065753,120]
[354535753,1740558742460,-206.0,0.00065753,120]
[354535754,1740558742470,-206.0,0.00065753,120]
[354535755,1740558742479,-206.0,0.00065753,120]
[354535756,1740558742489,-206.0,0.00065753,120]
[354535757,1740558742498,-206.0,0.00065753,120]
[354535758,1740558742507,-206.0,0.00065753,120]
[354535759,1740558742517,-206.0,0.00065753,120]
[354535760,1740558742526,-206.0,0.00065753,120]
[354535761,1740558742536,-206.0,0.00065753,120]
[354535762,1740558742545,-206.0,0.00065753,120]
[354535763,1740558742554,-206.0,0.00065753,120]
[354535764,1740558742562,-206.0,0.00065753,120]
[354535765,1740558742571,-206.0,0.00065753,120]
[354535766,1740558742580,-206.0,0.00065753,120]
[354535767,1740558742588,-206.0,0.00065753,120]
[354535768,1740558742596,-206.0,0.00065753,120]
[354535769,1740558742605,-206.0,0.00065753,120]
[354535770,1740558742614,-206.0,0.00065753,120]
[354535771,1740558742624,-206.0,0.00065753,120]
[354535772,1740558742633,-206.0,0.00065753,120]
[354535773,1740558742642,-206.0,0.00065753,120]
[354535774,1740558742652,-206.0,0.00065753,120]
[354535775,1740558742661,-206.0,0.00065753,120]
[354535776,1740558742671,-206.0,0.00065753,120]
[354535777,1740558742681,-206.0,0.00065753,120]
[354535778,1740558742692,-206.0,0.00065753,120]
[354535779,1740558742701,-206.0,0.00065753,120]
[354535780,1740558742711,-206.0,0.00065753,120]
[354535781,1740558742721,-206.0,0.00065753,120]
[354535782,1740558742731,-206.0,0.00065753,120]
[354535783,1740558742741,-206.0,0.00065753,120]
[354535784,1740558742750,-206.0,0.00065753,120]
[354535785,1740558742760,-206.0,0.00065753,120]
[354535786,1740558742770,-206.0,0.00065753,120]
[354535787,1740558742779,-206.0,0.00065753,120]
[354535788,1740558742788,-206.0,0.00065753,120]
[354535789,1740558742798,-206.0,0.00065753,120]
[354535790,1740558742807,-206.0,0.00065753,120]
[354535791,1740558742816,-206.0,0.00065753,120]
[354535792,1740558742825,-206.0,0.00065753,120]
[354535793,1740558742835,-206.0,0.00065753,120]
[354535794,1740558742844,-206.0,0.00065753,120]
[354535795,1740558742853,-206.0,0.00065753,120]
[354535796,1740558742862,-206.0,0.00065753,120]
[354535797,1740558742872,-206.0,0.00065753,120]
[354535798,1740558742881,-206.0,0.00065753,120]
[354535799,1740558742890,-206.0,0.00065753,120]
[354535800,1740558742899,-206.0,0.00065753,120]
[354535801,1740558742909,-206.0,0.00065753,120]
[354535802,1740558742918,-206.0,0.00065753,120]
[354535803,1740558742928,-2321.89981639,0.00065773,14]
[354535804,1740558742939,-1662.92998183,0.00065774,14]
[354535805,1740558742948,-112503.5887332,0.00065984,30]
[354535806,1740558742958,-10000.0,0.00066,120]
[354535807,1740558742968,-29110.116636,0.00066,120]
[354535808,1740558742978,-1268.97,0.000661,14]
[354535809,1740558742991,-1896.67,0.00066301,120]
[354535810,1740558743011,-6212.0,0.0006632,120]
[354535811,1740558743026,-6212.0,0.0006632,120]
[354535812,1740558743044,-6212.0,0.0006632,120]
[354535813,1740558743063,-6212.0,0.0006632,120]
[354535814,1740558743081,-9989.0,0.0006632,120]
[354535815,1740558743100,-151.0,0.00066438,120]
[354535816,1740558743115,-2000.0,0.00066845,15]
[354535817,1740558743132,-1978.45181516,0.00066845,14]
[354535818,1740558743151,-1896.67,0.00066849,120]
[354535819,1740558743171,-250.0,0.00066849,120]
[354535820,1740558743185,-250.0,0.00066849,120]
[354535821,1740558743204,-250.0,0.00066849,120]
[354535822,1740558743222,-250.0,0.00066849,120]
[354535823,1740558743237,-250.0,0.00066849,120]
[354535824,1740558743253,-250.0,0.00066849,120]
[354535825,1740558743269,-250.0,0.00066849,120]
[354535826,1740558743284,-250.0,0.00066849,120]
[354535827,1740558743301,-15464.0,0.00067,120]
[354535828,1740558743317,-50000.0,0.00067,120]
[354535829,1740558743331,-151.0,0.0006737,120]
[354535830,1740558743346,-1896.76559335,0.00067397,120]
[354535831,1740558743361,-3430.51,0.00067397,120]
[354535832,1740558743378,-2032.15,0.000674,30]
[354535833,1740558743393,-6942.21571603,0.0006753,120]
[354535834,1740558743407,-150.0,0.0006783,14]
[354535835,1740558743423,-150.0,0.0006783,14]
[354535836,1740558743438,-959.1,0.000679,30]
[354535837,1740558743453,-48204.59,0.00068,30]
[354535838,1740558743468,-1136.0,0.0006819,120]
[354535839,1740558743482,-1136.0,0.0006819,120]
[354535840,1740558743497,-1136.0,0.0006819,120]
[354535841,1740558743513,-1136.0,0.0006819,120]
[354535842,1740558743528,-1136.0,0.0006819,120]
[354535843,1740558743543,-1136.0,0.0006819,120]
[354535844,1740558743557,-1136.0,0.0006819,120]
[354535845,1740558743572,-1136.0,0.0006819,120]
[354535846,1740558743587,-1136.0,0.0006819,120]
[354535847,1740558743602,-1136.0,0.0006819,120]
[354535848,1740558743618,-1136.0,0.0006819,120]
[354535849,1740558743634,-1136.0,0.0006819,120]
[354535850,1740558743648,-151.0,0.00068301,120]
[354535851,1740558743664,-500.0,0.000684,120]
[354535852,1740558743678,-500.0,0.000684,120]
[354535853,1740558743695,-500.0,0.000684,120]
[354535854,1740558743710,-500.0,0.000684,120]
[354535855,1740558743726,-500.0,0.000684,120]
[354535856,1740558743742,-500.0,0.000684,120]
[354535857,1740558743757,-500.0,0.000684,120]
[354535858,1740558743771,-500.0,0.000684,120]
[354535859,1740558743787,-500.0,0.000684,120]
[354535860,1740558743801,-500.0,0.000684,120]
[354535861,1740558743815,-500.0,0.000684,120]
[354535862,1740558743831,-1000.0,0.00068493,2]
[354535863,1740558743845,-1000.0,0.00068493,2]
[354535864,1740558743859,-1000.0,0.00068493,2]
[354535865,1740558743874,-1000.0,0.00068493,2]
[354535866,1740558743889,-1000.0,0.00068493,2]
[354535867,1740558743903,-205.8113923,0.00068493,2]
[354535868,1740558743918,-500.0,0.00068493,120]
[354535869,1740558743933,-500.0,0.00068493,120]
[354535870,1740558743947,-500.0,0.00068493,120]
[354535871,1740558743961,-500.0,0.00068493,120]
[354535872,1740558743976,-500.0,0.00068493,120]
[354535873,1740558743991,-500.0,0.00068493,120]
[354535874,1740558744005,-500.0,0.00068493,120]
[354535875,1740558744019,-500.0,0.00068493,120]
[354535876,1740558744034,-500.0,0.00068493,120]
[354535877,1740558744049,-500.0,0.00068493,120]
[354535878,1740558744063,-500.0,0.00068493,120]
[354535879,1740558744077,-500.0,0.00068493,120]
[354535880,1740558744091,-500.0,0.00068493,120]
[354535881,1740558744105,-500.0,0.00068493,120]
[354535882,1740558744119,-500.0,0.00068493,120]
[354535883,1740558744134,-500.0,0.00068493,120]
[354535884,1740558744149,-500.0,0.00068493,120]
[354535885,1740558744164,-500.0,0.00068493,120]
[354535886,1740558744178,-500.0,0.00068493,120]
[354535887,1740558744194,-500.0,0.00068493,120]
[354535888,1740558744210,-500.0,0.00068493,120]
[354535889,1740558744224,-500.0,0.00068493,120]
[354535890,1740558744238,-600.0,0.00068493,120]
[354535891,1740558744253,-500.0,0.00068493,120]
[354535892,1740558744267,-500.0,0.00068493,120]
[354535893,1740558744280,-10000.0,0.00068493,120]
[354535894,1740558744296,-1555.0,0.00068493,120]
[354535895,1740558744310,-5922.79986222,0.00068937,120]
[354535896,1740558744324,-3000.0,0.00069,120]
[354535897,1740558744337,-1000.0,0.00069,120]
[354535898,1740558744352,-3000.0,0.0006901,120]
[354535899,1740558744366,-3000.0,0.0006902,120]
[354535900,1740558744381,-5395.348416,0.0006903,120]
[354535901,1740558744395,-500.0,0.00069041,120]
[354535902,1740558744409,-150.0,0.00069041,14]
[354535903,1740558744423,-150.0,0.00069041,14]
[354535904,1740558744439,-250.02784012,0.00069041,14]
[354535905,1740558744453,-151.0,0.00069233,120]
[354535906,1740558744468,-500.0,0.000694,120]
[354535907,1740558744482,-500.0,0.000694,120]
[354535908,1740558744497,-500.0,0.000694,120]
[354535909,1740558744511,-500.0,0.000694,120]
[354535910,1740558744526,-500.0,0.000694,120]
[354535911,1740558744540,-500.0,0.000694,120]
[354535912,1740558744555,-887.0,0.000698,30]
[354535913,1740558744570,-1000.0,0.000698,30]
[354535914,1740558744778,-2500.0,0.00069808,15]
[354535915,1740558744795,-1250.0,0.000699,120]
[354535916,1740558744806,-1250.0,0.000699,120]
[354535917,1740558744818,-1250.0,0.000699,120]
[354535918,1740558744827,-1250.0,0.000699,120]
[354535919,1740558744837,-1250.0,0.000699,120]
[354535920,1740558744847,-1000.0,0.0007,120]
[354535921,1740558744857,-1000.0,0.0007,120]
[354535922,1740558744866,-1000.0,0.0007,120]
[354535923,1740558744875,-1000.0,0.0007,120]
[354535924,1740558744884,-500.0,0.0007,120]
[354535925,1740558744894,-1000.0,0.0007,120]
[354535926,1740558744904,-1600.0,0.0007,14]
[354535927,1740558744913,-100000.0,0.0007,30]
[354535928,1740558744923,-151.0,0.00070164,120]
[354535929,1740558744934,-2073.53239614,0.00070858,120]
[354535930,1740558744943,-250.0,0.00070958,120]
[354535931,1740558744952,-250.0,0.00070958,120]
[354535932,1740558744961,-251.45630303,0.00070958,120]
[354535933,1740558744971,-250.0,0.00070958,120]
[354535934,1740558744980,-250.0,0.00070958,120]
[354535935,1740558744990,-250.0,0.00070958,120]
[354535936,1740558744999,-250.0,0.00070958,120]
[354535937,1740558745008,-366.80657005,0.00070958,120]
[354535938,1740558745019,-151.0,0.00071096,120]
[354535939,1740558745028,-480.0,0.00071233,120]
[354535940,1740558745037,-480.0,0.00071233,120]
[354535941,1740558745047,-3430.51,0.0007178,120]
[354535942,1740558745056,-151.0,0.00072027,120]
[354535943,1740558745066,-500.0,0.00072493,120]
[354535944,1740558745075,-151.0,0.00072959,120]
[354535945,1740558745084,-151.0,0.0007389,120]
[354535946,1740558745094,-20000.0,0.000739,120]
[354535947,1740558745104,-20000.0,0.000739,120]
[354535948,1740558745115,-20000.0,0.000739,120]
[354535949,1740558745125,-20000.0,0.000739,120]
[354535950,1740558745135,-20000.0,0.000739,120]
[354535951,1740558745145,-2032.15,0.00074,30]
[354535952,1740558745155,-1944.87970854,0.00074,120]
[354535953,1740558745165,-151.0,0.00074822,120]
[354535954,1740558745174,-1000.0,0.00075,120]
[354535955,1740558745186,-349.07011806,0.00075068,120]
[354535956,1740558745195,-250.0,0.00075068,120]
[354535957,1740558745205,-250.0,0.00075068,120]
[354535958,1740558745214,-151.0,0.00075753,120]
[354535959,1740558745223,-500.0,0.00075972,120]
[354535960,1740558745233,-500.0,0.00075972,120]
[354535961,1740558745243,-500.0,0.00075972,120]
[354535962,1740558745252,-150.0,0.00075972,120]
[354535963,1740558745262,-500.0,0.00076117,120]
[354535964,1740558745272,-3430.51,0.00076164,120]
[354535965,1740558745281,-151.0,0.00076685,120]
[354535966,1740558745292,-2000.0,0.00077178,120]
[354535967,1740558745305,-151.0,0.00077616,120]
[354535968,1740558745322,-2032.15,0.000784,30]
[354535969,1740558745332,-151.0,0.00078548,120]
[354535970,1740558745341,-254.93080487,0.00079178,120]
[354535971,1740558745352,-250.0,0.00079178,120]
[354535972,1740558745362,-151.0,0.00079479,120]
[354535973,1740558745371,-577.1633382,0.00079799,120]
[354535974,1740558745381,-500.0,0.00079923,120]
[354535975,1740558745390,-300.0,0.0008,120]
[354535976,1740558745399,-670.20948781,0.0008,50]
[354535977,1740558745409,-1000.0,0.0008,120]
[354535978,1740558745419,-1780.668552,0.0008,120]
[354535979,1740558745429,-1066.23,0.0008,120]
[354535980,1740558745442,-500.0,0.00080082,120]
[354535981,1740558745452,-500.0,0.00080082,120]
[354535982,1740558745461,-500.0,0.00080082,120]
[354535983,1740558745471,-2500.0,0.00080321,14]
[354535984,1740558745481,-2500.0,0.00080322,15]
[354535985,1740558745491,-2500.0,0.00080341,7]
[354535986,1740558745500,-151.0,0.00080411,120]
[354535987,1740558745511,-3430.51,0.00080547,120]
[354535988,1740558745520,-151.0,0.00081342,120]
[354535989,1740558745530,-2032.15,0.000817,30]
[354535990,1740558745541,-20000.0,0.00082,120]
[354535991,1740558745551,-20000.0,0.00082,120]
[354535992,1740558745560,-20000.0,0.00082,120]
[354535993,1740558745570,-20000.0,0.00082,120]
[354535994,1740558745579,-20000.0,0.00082,120]
[354535995,1740558745589,-21353.15377531,0.000822,120]
[354535996,1740558745598,-305.72553433,0.00082208,60]
[354535997,1740558745607,-151.0,0.00082274,120]
[354535998,1740558745617,-151.0,0.00083205,120]
[354535999,1740558745627,-250.0,0.00083287,120]
[354536000,1740558745637,-151.0,0.00084137,120]
[354536001,1740558745647,-500.0,0.00084191,120]
[354536002,1740558745656,-500.0,0.00084191,120]
[354536003,1740558745666,-3430.51,0.00084931,120]
[354536004,1740558745675,-2032.15,0.00085,60]
[354536005,1740558745685,-1000.0,0.00085,60]
[354536006,1740558745694,-151.0,0.00085068,120]
[354536007,1740558745703,-151.0,0.00086,120]
[354536008,1740558745713,-151.0,0.00086932,120]
[354536009,1740558745722,-3000.0,0.00087235,30]
[354536010,1740558745732,-250.0,0.00087397,120]
[354536011,1740558745742,-2032.15,0.000875,60]
[354536012,1740558745751,-151.0,0.00087863,120]
[354536013,1740558745760,-1000.0,0.00088,120]
[354536014,1740558745769,-959.1,0.00088,60]
[354536015,1740558745779,-500.0,0.00088301,120]
[354536016,1740558745789,-492.19742731,0.00088301,120]
[354536017,1740558745798,-151.0,0.00088795,120]
[354536018,1740558745807,-48204.59,0.00089,60]
[354536019,1740558745817,-3430.51,0.00089315,120]
[354536020,1740558745826,-3944.89993352,0.000894,120]
[354536021,1740558745838,-329.0,0.00089726,120]
[354536022,1740558745848,-1000.0,0.0009,120]
[354536023,1740558745858,-1000.0,0.0009,120]
[354536024,1740558745869,-1000.0,0.0009,120]
[354536025,1740558745879,-146878.32796252,0.0009,10]
[354536026,1740558745889,-2032.15,0.000904,60]
[354536027,1740558745900,-1000.0,0.00091,120]
[354536028,1740558745910,-250.0,0.00091506,120]
[354536029,1740558745921,-500.0,0.0009241,120]
[354536030,1740558745931,-2000.0,0.00092712,120]
[354536031,1740558745943,-179.65864857,0.00093187,60]
[354536032,1740558745953,-3430.51,0.00093698,120]
[354536033,1740558745962,-6137.69301055,0.0009488,60]
[354536034,1740558745972,-1000.0,0.00095,120]
[354536035,1740558745981,-1576.12673225,0.00095,120]
[354536036,1740558745992,-215.36,0.00095616,120]
[354536037,1740558746002,-500.0,0.0009652,120]
[354536038,1740558746011,-1000.0,0.00096649,90]
[354536039,1740558746021,-2032.15,0.00097,60]
[354536040,1740558746031,-50940.44369039,0.000974,120]
[354536041,1740558746042,-7056.09081482,0.000975,30]
[354536042,1740558746051,-3000.0,0.00097748,14]
[354536043,1740558746061,-1811.9205989,0.00097749,60]
[354536044,1740558746070,-3000.0,0.00097768,7]
[354536045,1740558746079,-3430.51,0.00098082,120]
[354536046,1740558746088,-1243.0,0.0009877,120]
[354536047,1740558746098,-1243.0,0.0009877,120]
[354536048,1740558746107,-1243.0,0.0009877,120]
[354536049,1740558746117,-1243.0,0.0009877,120]
[354536050,1740558746125,-1243.0,0.0009877,120]
[354536051,1740558746135,-1243.0,0.0009877,120]
[354536052,1740558746144,-2007.5473699,0.00099,120]
[354536053,1740558746154,-112503.5887332,0.00099,30]
[354536054,1740558746164,-825391.46358354,0.00099,30]
[354536055,1740558746173,-42517.68352732,0.00099499,120]
[354536056,1740558746185,-1015.18,0.000997,30]
[354536057,1740558746196,-2000.0,0.000999,120]
[354536058,1740558746205,-162.38812232,0.000999,28]
[354536059,1740558746215,-429.66,0.00099927,120]
[354536060,1740558746225,-213.19070528,0.00099999,120]
[354536061,1740558746234,-403.83440175,0.00099999,120]
[354536062,1740558746244,-500.0,0.00099999,31]
[354536063,1740558746254,-535.73586696,0.00099999,120]
[354536064,1740558746263,-500.0,0.00099999,31]
[354536065,1740558746273,-500.0,0.00099999,120]
[354536066,1740558746282,-500.0,0.00099999,31]
[354536067,1740558746293,-500.0,0.00099999,120]
[354536068,1740558746306,-500.0,0.00099999,120]
[354536069,1740558746316,-500.0,0.00099999,31]
[354536070,1740558746325,-500.0,0.00099999,120]
[354536071,1740558746335,-500.0,0.00099999,31]
[354536072,1740558746345,-500.0,0.00099999,120]
[354536073,1740558746355,-500.0,0.00099999,31]
[354536074,1740558746365,-500.0,0.00099999,120]
[354536075,1740558746377,-572.20946371,0.00099999,120]
[354536076,1740558746388,-257.61319272,0.00099999,31]
[354536077,1740558746400,-500.0,0.00099999,120]
[354536078,1740558746410,-500.0,0.00099999,31]
[354536079,1740558746419,-500.0,0.00099999,120]
[354536080,1740558746428,-500.0,0.00099999,120]
[354536081,1740558746439,-500.0,0.00099999,31]
[354536082,1740558746450,-500.0,0.00099999,31]
[354536083,1740558746459,-500.0,0.00099999,120]
[354536084,1740558746470,-500.0,0.00099999,31]
[354536085,1740558746480,-345.15282447,0.00099999,120]
[354536086,1740558746489,-500.0,0.00099999,31]
[354536087,1740558746499,-500.0,0.00099999,31]
[354536088,1740558746509,-500.0,0.00099999,120]
[354536089,1740558746518,-500.0,0.00099999,120]
[354536090,1740558746528,-500.0,0.00099999,120]
[354536091,1740558746537,-500.0,0.00099999,31]
[354536092,1740558746547,-500.0,0.00099999,120]
[354536093,1740558746556,-500.0,0.00099999,120]
[354536094,1740558746565,-500.0,0.00099999,120]
[354536095,1740558746575,-500.0,0.00099999,120]
[354536096,1740558746585,-500.0,0.00099999,120]
[354536097,1740558746595,-500.0,0.00099999,120]
[354536098,1740558746604,-500.0,0.00099999,120]
[354536099,1740558746613,-382.45885579,0.00099999,120]
[354536100,1740558746623,-500.0,0.00099999,120]
[354536101,1740558746632,-400.0,0.00099999,120]
[354536102,1740558746641,-593.66061012,0.00099999,31]
[354536103,1740558746651,-331.48520494,0.00099999,120]
[354536104,1740558746660,-500.0,0.00099999,120]
[354536105,1740558746669,-500.0,0.00099999,120]
[354536106,1740558746679,-500.0,0.00099999,120]
[354536107,1740558746690,-500.0,0.00099999,120]
[354536108,1740558746700,-193.65197249,0.00099999,120]
[354536109,1740558746710,-500.0,0.00099999,2]
[354536110,1740558746720,-500.0,0.00099999,2]
[354536111,1740558746730,-494781.84589658,0.001,120]
[354536112,1740559047958,300.0,0.00025,120]
[354536113,1740559131682,-282.0,0.00029999,2]
[354536114,1740559131706,-2070.0,0.0003,20]
[354536115,1740559131736,-2069.0,0.0003,20]
[354536116,1740559131762,-2069.0,0.0003,20]
[354536117,1740559131785,-2069.0,0.0003,20]
[354536118,1740559131808,-987.71208,0.00032323,2]
[354536119,1740559131833,-170.1083753,0.00032675,2]
[354536120,1740559131856,-19603.87691479,0.00034994,2]
[354536121,1740559131881,-161.49461176,0.00035516,2]
[354536122,1740559131904,-500.0,0.00035616,2]
[354536123,1740559131928,-500.0,0.00035616,2]
[354536124,1740559131951,-500.0,0.00035616,2]
[354536125,1740559131974,-551.64,0.00035616,2]
[354536126,1740559131999,-500.0,0.00035616,2]
[354536127,1740559132023,-500.0,0.00035616,2]
[354536128,1740559132047,-500.0,0.00035616,2]
[354536129,1740559132071,-500.0,0.00035616,2]
[354536130,1740559132095,-500.0,0.00035616,2]
[354536131,1740559132124,-500.0,0.00035616,2]
[354536132,1740559132150,-500.0,0.00035616,2]
[354536133,1740559132175,-489.85443509,0.00035616,2]
[354536134,1740559132200,-500.0,0.00035616,2]
[354536135,1740559133024,-500.0,0.00035616,2]
[354536136,1740559133050,-500.0,0.00035616,2]
[354536137,1740559133074,-500.0,0.00035616,2]
[354536138,1740559133098,-500.0,0.00035616,2]
[354536139,1740559133122,-500.0,0.00035616,2]
[354536140,1740559133146,-429.57794078,0.00035616,2]
[354536141,1740559133169,-500.0,0.00035616,2]
[354536142,1740559133192,-500.0,0.00035616,2]
[354536143,1740559133215,-500.0,0.00035616,2]
[354536144,1740559133237,-500.0,0.00035616,2]
[354536145,1740559133265,-500.0,0.00035616,2]
[354536146,1740559133291,-500.0,0.00035616,2]
[354536147,1740559133315,-500.0,0.00035616,2]
[354536148,1740559133338,-502.48416692,0.00035616,2]
[354536149,1740559133361,-500.0,0.00035616,2]
[354536150,1740559133384,-500.0,0.00035616,2]
[354536151,1740559133407,-500.0,0.00035616,2]
[354536152,1740559133435,-500.0,0.00035616,2]
[354536153,1740559133458,-500.0,0.00035616,2]
[354536154,1740559133482,-500.0,0.00035616,2]
[354536155,1740559133509,-500.0,0.00035616,2]
[354536156,1740559133532,-514.44279323,0.00035616,2]
[354536157,1740559133556,-500.0,0.00035616,2]
[354536158,1740559133580,-500.0,0.00035616,2]
[354536159,1740559133605,-500.0,0.00035616,2]
[354536160,1740559133629,-500.0,0.00035616,2]
[354536161,1740559133653,-557.76555785,0.00035616,2]
[354536162,1740559133676,-500.0,0.00035616,2]
[354536163,1740559133701,-500.0,0.00035616,2]
[354536164,1740559133725,-457.24653084,0.00035616,2]
[354536165,1740559133748,-500.0,0.00035616,2]
[354536166,1740559133777,-500.0,0.00035616,2]
[354536167,1740559133800,-500.0,0.00035616,2]
[354536168,1740559133823,-500.0,0.00035616,2]
[354536169,1740559133847,-500.0,0.00035616,2]
[354536170,1740559133870,-541.99335899,0.00035616,2]
[354536171,1740559133892,-509.11820944,0.00035616,2]
[354536172,1740559133916,-500.0,0.00035616,2]
[354536173,1740559133939,-500.0,0.00035616,2]
[354536174,1740559133962,-500.0,0.00035616,2]
[354536175,1740559133986,-500.0,0.00035616,2]
[354536176,1740559134010,-500.0,0.00035616,2]
[354536177,1740559134034,-500.28960985,0.00035616,2]
[354536178,1740559134058,-500.0,0.00035616,2]
[354536179,1740559134083,-500.0,0.00035616,2]
[354536180,1740559134108,-500.0,0.00035616,2]
[354536181,1740559134131,-525.72,0.00035616,2]
[354536182,1740559134156,-618.71,0.00035616,2]
[354536183,1740559134180,-500.0,0.00035616,2]
[354536184,1740559134203,-607.6,0.00035616,2]
[354536185,1740559134229,-500.0,0.00035616,2]
[354536186,1740559134253,-500.0,0.00035616,2]
[354536187,1740559134275,-294.5794044,0.00035616,2]
[354536188,1740559134299,-500.0,0.00035616,2]
[354536189,1740559134322,-500.0,0.00035616,2]
[354536190,1740559134344,-500.0,0.00035616,2]
[354536191,1740559134367,-500.0,0.00035616,2]
[354536192,1740559134390,-2223.8,0.00035616,2]
[354536193,1740559134413,-500.0,0.00035616,2]
[354536194,1740559134441,-500.0,0.00035616,2]
[354536195,1740559134465,-500.0,0.00035616,2]
[354536196,1740559134488,-500.0,0.00035616,2]
[354536197,1740559134514,-500.0,0.00035616,2]